fUST/lending_fUST_20251212
["ID","MTS","AMOUNT","RATE_DAILY","PERIOD"]
[398256917,1765473054808,-500.0,0.0001315,2]
[398256918,1765473054817,-500.0,0.0001315,2]
[398256919,1765473054827,-617.92,0.0001315,2]
[398256920,1765473054836,-1369.84,0.0001315,2]
[398256921,1765473054845,-500.0,0.0001315,2]
[398256922,1765473054855,-500.0,0.0001315,2]
[398256923,1765473054864,-500.0,0.0001315,2]
[398256924,1765473054873,-500.0,0.0001315,2]
[398256925,1765473054883,-516.61922556,0.0001315,2]
[398256926,1765473054893,-500.0,0.0001315,2]
[398256927,1765473054903,-500.0,0.0001315,2]
[398256928,1765473054912,-500.0,0.0001315,2]
[398256929,1765473054922,-500.0,0.0001315,2]
[398256930,1765473054931,-500.0,0.0001315,2]
[398256931,1765473055210,-1527.37,0.0001315,2]
[398256932,1765473055223,-2464.33,0.0001315,2]
[398256933,1765473055232,-500.0,0.0001315,2]
[398256934,1765473055241,-858.6,0.0001315,2]
[398256935,1765473055251,-500.0,0.0001315,2]
[398256936,1765473055260,-1279.21,0.0001315,2]
[398256937,1765473055269,-500.0,0.0001315,2]
[398256938,1765473055279,-2247.37,0.0001315,2]
[398256939,1765473055288,-500.0,0.0001315,2]
[398256940,1765473055298,-500.0,0.0001315,2]
[398256941,1765473055307,-1195.79,0.0001315,2]
[398256942,1765473055317,-500.0,0.0001315,2]
[398256943,1765473055326,-500.0,0.0001315,2]
[398256944,1765473055337,-500.0,0.0001315,2]
[398256945,1765473055346,-500.0,0.0001315,2]
[398256946,1765473055357,-500.0,0.0001315,2]
[398256947,1765473055366,-874.92,0.0001315,2]
[398256948,1765473055376,-500.0,0.0001315,2]
[398256949,1765473055386,-500.0,0.0001315,2]
[398256950,1765473055396,-526.06,0.0001315,2]
[398256951,1765473055406,-505.47,0.0001315,2]
[398256952,1765473055416,-500.0,0.0001315,2]
[398256953,1765473055426,-500.0,0.0001315,2]
[398256954,1765473055435,-500.0,0.0001315,2]
[398256955,1765473055445,-700.69,0.0001315,2]
[398256956,1765473055455,-500.0,0.0001315,2]
[398256957,1765473055465,-500.0,0.0001315,2]
[398256958,1765473055475,-500.0,0.0001315,2]
[398256959,1765473055485,-500.0,0.0001315,2]
[398256960,1765473055495,-500.0,0.0001315,2]
[398256961,1765473055517,-681.33,0.0001315,2]
[398256962,1765473055534,-500.0,0.0001315,2]
[398256963,1765473055544,-250.25983692,0.0001315,2]
[398256964,1765473055555,-500.0,0.0001315,2]
[398256965,1765473055564,-500.0,0.0001315,2]
[398256966,1765473055574,-500.0,0.0001315,2]
[398256967,1765473055584,-500.0,0.0001315,2]
[398256968,1765473055594,-701.01,0.0001315,2]
[398256969,1765473055604,-500.0,0.0001315,2]
[398256970,1765473055615,-500.0,0.0001315,2]
[398256971,1765473055625,-1761.69,0.0001315,2]
[398256972,1765473055634,-500.0,0.0001315,2]
[398256973,1765473055644,-668.75,0.0001315,2]
[398256974,1765473055653,-1576.73,0.0001315,2]
[398256975,1765473055663,-500.0,0.0001315,2]
[398256976,1765473055673,-500.0,0.0001315,2]
[398256977,1765473055683,-500.0,0.0001315,2]
[398256978,1765473055693,-1411.4,0.0001315,2]
[398256979,1765473055703,-500.0,0.0001315,2]
[398256980,1765473055713,-7512.92,0.0001315,2]
[398256981,1765473055723,-500.0,0.0001315,2]
[398256982,1765473055732,-500.0,0.0001315,2]
[398256983,1765473055742,-637.83,0.0001315,2]
[398256984,1765473055752,-500.0,0.0001315,2]
[398256985,1765473055762,-500.0,0.0001315,2]
[398256986,1765473055772,-1296.47,0.0001315,2]
[398256987,1765473055782,-1688.98,0.0001315,2]
[398256988,1765473055791,-445.26796751,0.0001315,2]
[398256989,1765473055803,-500.0,0.0001315,2]
[398256990,1765473055812,-1630.81,0.0001315,2]
[398256991,1765473055822,-647.94,0.0001315,2]
[398256992,1765473055832,-500.0,0.0001315,2]
[398256993,1765473055844,-500.0,0.0001315,2]
[398256994,1765473055854,-1041.06,0.0001315,2]
[398256995,1765473055864,-500.0,0.0001315,2]
[398256996,1765473055874,-500.0,0.0001315,2]
[398256997,1765473055883,-1080.19,0.0001315,2]
[398256998,1765473055893,-3732.69,0.0001315,2]
[398256999,1765473055903,-803.0,0.0001315,2]
[398257000,1765473055913,-500.0,0.0001315,2]
[398257001,1765473055923,-500.0,0.0001315,2]
[398257002,1765473055933,-1453.87,0.0001315,2]
[398257003,1765473055942,-1663.21,0.0001315,2]
[398257004,1765473055952,-950.4,0.0001315,2]
[398257005,1765473055963,-500.0,0.0001315,2]
[398257006,1765473055973,-500.0,0.0001315,2]
[398257007,1765473055983,-1287.46,0.0001315,2]
[398257008,1765473055992,-503.47614972,0.0001315,2]
[398257009,1765473056002,-500.0,0.0001315,2]
[398257010,1765473056012,-1595.81,0.0001315,2]
[398257011,1765473056022,-500.0,0.0001315,2]
[398257012,1765473056032,-501.01561841,0.0001315,2]
[398257013,1765473056044,-500.0,0.0001315,2]
[398257014,1765473056054,-536.67,0.0001315,2]
[398257015,1765473056063,-500.0,0.0001315,2]
[398257016,1765473056073,-500.0,0.0001315,2]
[398257017,1765473056083,-500.91226537,0.0001315,2]
[398257018,1765473056092,-1030.43,0.0001315,2]
[398257019,1765473056103,-947.41,0.0001315,2]
[398257020,1765473056112,-563.61448969,0.0001315,2]
[398257021,1765473056122,-1145.0,0.0001315,2]
[398257022,1765473056131,-610.1,0.0001315,2]
[398257023,1765473056141,-500.0,0.0001315,2]
[398257024,1765473056150,-916.72,0.0001315,2]
[398257025,1765473056159,-947.38,0.0001315,2]
[398257026,1765473056169,-603.81,0.0001315,2]
[398257027,1765473056179,-1226.34,0.0001315,2]
[398257028,1765473056188,-199.8,0.0001315,2]
[398257029,1765473056199,-1501.42,0.0001315,2]
[398257030,1765473056208,-226.51378462,0.0001315,2]
[398257031,1765473056219,-500.0,0.0001315,2]
[398257032,1765473056229,-500.0,0.0001315,2]
[398257033,1765473056239,-500.0,0.0001315,2]
[398257034,1765473056248,-500.0,0.0001315,2]
[398257035,1765473056258,-500.0,0.0001315,2]
[398257036,1765473056268,-1113.97,0.0001315,2]
[398257037,1765473056278,-500.0,0.0001315,2]
[398257038,1765473056288,-982.88,0.0001315,2]
[398257039,1765473056298,-817.06,0.0001315,2]
[398257040,1765473056308,-603.27,0.0001315,2]
[398257041,1765473056317,-1222.38,0.0001315,2]
[398257042,1765473056327,-2222.37,0.0001315,2]
[398257043,1765473056337,-3340.02,0.0001315,2]
[398257044,1765473056347,-500.0,0.0001315,2]
[398257045,1765473056357,-500.0,0.0001315,2]
[398257046,1765473056367,-500.0,0.0001315,2]
[398257047,1765473056377,-1823.03,0.0001315,2]
[398257048,1765473056387,-740.93,0.0001315,2]
[398257049,1765473056397,-500.0,0.0001315,2]
[398257050,1765473056407,-500.0,0.0001315,2]
[398257051,1765473056416,-2279.37,0.0001315,2]
[398257052,1765473056426,-1319.35,0.0001315,2]
[398257053,1765473056436,-500.0,0.0001315,2]
[398257054,1765473056445,-572.55,0.0001315,2]
[398257055,1765473056455,-3595.68,0.0001315,2]
[398257056,1765473056464,-500.0,0.0001315,2]
[398257057,1765473056474,-500.0,0.0001315,2]
[398257058,1765473056483,-522.50021222,0.0001315,2]
[398257059,1765473056493,-604.59,0.0001315,2]
[398257060,1765473056503,-635.56,0.0001315,2]
[398257061,1765473056513,-870.33,0.0001315,2]
[398257062,1765473056523,-1128.13,0.0001315,2]
[398257063,1765473056533,-1376.81,0.0001315,2]
[398257064,1765473056543,-500.0,0.0001315,2]
[398257065,1765473056554,-500.0,0.0001315,2]
[398257066,1765473056564,-500.0,0.0001315,2]
[398257067,1765473056573,-333.97303683,0.0001315,2]
[398257068,1765473056583,-500.0,0.0001315,2]
[398257069,1765473056592,-1442.81,0.0001315,2]
[398257070,1765473056602,-500.0,0.0001315,2]
[398257071,1765473056611,-500.0,0.0001315,2]
[398257072,1765473056621,-500.0,0.0001315,2]
[398257073,1765473056631,-500.0,0.0001315,2]
[398257074,1765473056640,-500.0,0.0001315,2]
[398257075,1765473056650,-500.0,0.0001315,2]
[398257076,1765473056659,-500.0,0.0001315,2]
[398257077,1765473056669,-412.99044504,0.0001315,2]
[398257078,1765473056679,-1626.69,0.0001315,2]
[398257079,1765473056689,-2114.36,0.0001315,2]
[398257080,1765473056699,-1142.02,0.0001315,2]
[398257081,1765473056709,-1166.75,0.0001315,2]
[398257082,1765473056718,-500.0,0.0001315,2]
[398257083,1765473056728,-1326.87,0.0001315,2]
[398257084,1765473056738,-1524.16,0.0001315,2]
[398257085,1765473056747,-847.25,0.0001315,2]
[398257086,1765473056757,-500.0,0.0001315,2]
[398257087,1765473056766,-500.0,0.0001315,2]
[398257088,1765473056776,-922.26,0.0001315,2]
[398257089,1765473056785,-820.02,0.0001315,2]
[398257090,1765473056795,-2189.83,0.0001315,2]
[398257091,1765473056804,-1088.15,0.0001315,2]
[398257092,1765473056814,-1543.6,0.0001315,2]
[398257093,1765473056823,-681.91,0.0001315,2]
[398257094,1765473056833,-500.0,0.0001315,2]
[398257095,1765473056842,-500.0,0.0001315,2]
[398257096,1765473056851,-500.0,0.0001315,2]
[398257097,1765473056861,-959.95,0.0001315,2]
[398257098,1765473056871,-500.0,0.0001315,2]
[398257099,1765473056880,-500.0,0.0001315,2]
[398257100,1765473056890,-500.0,0.0001315,2]
[398257101,1765473056900,-500.0,0.0001315,2]
[398257102,1765473056909,-500.0,0.0001315,2]
[398257103,1765473056919,-1538.57,0.0001315,2]
[398257104,1765473056928,-10671.61,0.0001315,2]
[398257105,1765473056938,-500.0,0.0001315,2]
[398257106,1765473056947,-500.0,0.0001315,2]
[398257107,1765473056957,-500.0,0.0001315,2]
[398257108,1765473056971,-500.0,0.0001315,2]
[398257109,1765473056981,-500.89009911,0.0001315,2]
[398257110,1765473056991,-873.52,0.0001315,2]
[398257111,1765473057000,-3357.79,0.0001315,2]
[398257112,1765473057010,-500.0,0.0001315,2]
[398257113,1765473057020,-500.0,0.0001315,2]
[398257114,1765473057029,-570.68448425,0.0001315,2]
[398257115,1765473057041,-1731.33,0.0001315,2]
[398257116,1765473057050,-53416.15,0.0001315,2]
[398257117,1765473057061,-500.0,0.0001315,2]
[398257118,1765473057071,-500.0,0.0001315,2]
[398257119,1765473057080,-500.0,0.0001315,2]
[398257120,1765473057090,-910.44,0.0001315,2]
[398257121,1765473057099,-500.0,0.0001315,2]
[398257122,1765473057109,-1181.33,0.0001315,2]
[398257123,1765473057119,-619.61,0.0001315,2]
[398257124,1765473057129,-500.0,0.0001315,2]
[398257125,1765473057138,-410.55030763,0.0001315,2]
[398257126,1765473057148,-875.86,0.0001315,2]
[398257127,1765473057158,-500.0,0.0001315,2]
[398257128,1765473057167,-604.4,0.0001315,2]
[398257129,1765473057176,-630.31,0.0001315,2]
[398257130,1765473057186,-8389.15,0.0001315,2]
[398257131,1765473057195,-2523.82,0.0001315,2]
[398257132,1765473057205,-500.0,0.0001315,2]
[398257133,1765473057215,-500.0,0.0001315,2]
[398257134,1765473057225,-500.0,0.0001315,2]
[398257135,1765473057235,-500.0,0.0001315,2]
[398257136,1765473057244,-850.25,0.0001315,2]
[398257137,1765473057254,-2914.61,0.0001315,2]
[398257138,1765473057264,-500.0,0.0001315,2]
[398257139,1765473057274,-1104.52,0.0001315,2]
[398257140,1765473057283,-500.0,0.0001315,2]
[398257141,1765473057293,-1148.62,0.0001315,2]
[398257142,1765473057303,-1841.97,0.0001315,2]
[398257143,1765473057313,-500.0,0.0001315,2]
[398257144,1765473057322,-500.0,0.0001315,2]
[398257145,1765473057332,-500.0,0.0001315,2]
[398257146,1765473057341,-1309.83,0.0001315,2]
[398257147,1765473057351,-500.0,0.0001315,2]
[398257148,1765473057361,-950.55,0.0001315,2]
[398257149,1765473057370,-500.0,0.0001315,2]
[398257150,1765473057380,-1839.66,0.0001315,2]
[398257151,1765473057389,-500.0,0.0001315,2]
[398257152,1765473057399,-8048.24,0.0001315,2]
[398257153,1765473057408,-500.0,0.0001315,2]
[398257154,1765473057418,-1410.6,0.0001315,2]
[398257155,1765473057427,-500.22318033,0.0001315,2]
[398257156,1765473057437,-1097.57,0.0001315,2]
[398257157,1765473057446,-500.0,0.0001315,2]
[398257158,1765473057456,-2081.19,0.0001315,2]
[398257159,1765473057465,-500.0,0.0001315,2]
[398257160,1765473057475,-1191.31,0.0001315,2]
[398257161,1765473057484,-1560.76,0.0001315,2]
[398257162,1765473057494,-500.0,0.0001315,2]
[398257163,1765473057503,-887.69,0.0001315,2]
[398257164,1765473057512,-500.0,0.0001315,2]
[398257165,1765473057522,-987.32,0.0001315,2]
[398257166,1765473057531,-5938.55,0.0001315,2]
[398257167,1765473057541,-500.0,0.0001315,2]
[398257168,1765473057550,-500.0,0.0001315,2]
[398257169,1765473057560,-5007.32,0.0001315,2]
[398257170,1765473057569,-2136.22,0.0001315,2]
[398257171,1765473057579,-1973.08,0.0001315,2]
[398257172,1765473057590,-2066.71,0.0001315,2]
[398257173,1765473057599,-543.85293044,0.0001315,2]
[398257174,1765473057608,-500.0,0.0001315,2]
[398257175,1765473057617,-2108.49,0.0001315,2]
[398257176,1765473057626,-500.0,0.0001315,2]
[398257177,1765473057636,-500.0,0.0001315,2]
[398257178,1765473057645,-990.15,0.0001315,2]
[398257179,1765473057654,-17849.44,0.0001315,2]
[398257180,1765473057663,-500.0,0.0001315,2]
[398257181,1765473057672,-500.0,0.0001315,2]
[398257182,1765473057681,-500.0,0.0001315,2]
[398257183,1765473057690,-1798.0,0.0001315,2]
[398257184,1765473057699,-3449.92,0.0001315,2]
[398257185,1765473057708,-500.0,0.0001315,2]
[398257186,1765473057718,-500.0,0.0001315,2]
[398257187,1765473057727,-500.0,0.0001315,2]
[398257188,1765473057736,-4118.34,0.0001315,2]
[398257189,1765473057745,-830.5,0.0001315,2]
[398257190,1765473057754,-500.0,0.0001315,2]
[398257191,1765473057763,-910.39,0.0001315,2]
[398257192,1765473057773,-500.0,0.0001315,2]
[398257193,1765473057782,-500.0,0.0001315,2]
[398257194,1765473057791,-15811.29,0.0001315,2]
[398257195,1765473057800,-500.0,0.0001315,2]
[398257196,1765473057809,-500.0,0.0001315,2]
[398257197,1765473057819,-862.37,0.0001315,2]
[398257198,1765473057828,-602.31,0.0001315,2]
[398257199,1765473057837,-525.88,0.0001315,2]
[398257200,1765473057846,-500.0,0.0001315,2]
[398257201,1765473057855,-788.03,0.0001315,2]
[398257202,1765473057864,-2726.54,0.0001315,2]
[398257203,1765473057873,-500.0,0.0001315,2]
[398257204,1765473057883,-500.0,0.0001315,2]
[398257205,1765473057892,-500.0,0.0001315,2]
[398257206,1765473057901,-500.0,0.0001315,2]
[398257207,1765473057911,-1792.08,0.0001315,2]
[398257208,1765473057920,-500.0,0.0001315,2]
[398257209,1765473057929,-500.0,0.0001315,2]
[398257210,1765473057938,-500.0,0.0001315,2]
[398257211,1765473057947,-648.27,0.0001315,2]
[398257212,1765473057956,-1464.86,0.0001315,2]
[398257213,1765473057969,-500.0,0.0001315,2]
[398257214,1765473057978,-669.48,0.0001315,2]
[398257215,1765473057987,-2489.03,0.0001315,2]
[398257216,1765473057996,-500.0,0.0001315,2]
[398257217,1765473058006,-500.0,0.0001315,2]
[398257218,1765473058015,-979.89,0.0001315,2]
[398257219,1765473058023,-500.0,0.0001315,2]
[398257220,1765473058032,-500.0,0.0001315,2]
[398257221,1765473058044,-2319.1,0.0001315,2]
[398257222,1765473058053,-8021.34,0.0001315,2]
[398257223,1765473058063,-1059.6,0.0001315,2]
[398257224,1765473058071,-748.3,0.0001315,2]
[398257225,1765473058080,-500.0,0.0001315,2]
[398257226,1765473058089,-758.49,0.0001315,2]
[398257227,1765473058099,-500.0,0.0001315,2]
[398257228,1765473058108,-500.0,0.0001315,2]
[398257229,1765473058117,-521.79,0.0001315,2]
[398257230,1765473058127,-500.0,0.0001315,2]
[398257231,1765473058135,-500.0,0.0001315,2]
[398257232,1765473058145,-3194.33,0.0001315,2]
[398257233,1765473058154,-1602.59,0.0001315,2]
[398257234,1765473058163,-526.42,0.0001315,2]
[398257235,1765473058172,-1033.03,0.0001315,2]
[398257236,1765473058181,-500.0,0.0001315,2]
[398257237,1765473058191,-500.0,0.0001315,2]
[398257238,1765473058200,-185.31458574,0.0001315,2]
[398257239,1765473058209,-500.0,0.0001315,2]
[398257240,1765473058219,-1427.04,0.0001315,2]
[398257241,1765473058229,-500.0,0.0001315,2]
[398257242,1765473058238,-1182.82,0.0001315,2]
[398257243,1765473058248,-500.0,0.0001315,2]
[398257244,1765473058257,-503.81,0.0001315,2]
[398257245,1765473058267,-2241.56,0.0001315,2]
[398257246,1765473058276,-292.39484043,0.0001315,2]
[398257247,1765473058285,-2357.55,0.0001315,2]
[398257248,1765473058296,-500.0,0.0001315,2]
[398257249,1765473058309,-500.0,0.0001315,2]
[398257250,1765473058321,-203.57265244,0.0001315,2]
[398257251,1765473058334,-500.0,0.0001315,2]
[398257252,1765473058347,-500.0,0.0001315,2]
[398257253,1765473058359,-500.0,0.0001315,2]
[398257254,1765473058370,-746.51,0.0001315,2]
[398257255,1765473058380,-500.0,0.0001315,2]
[398257256,1765473058392,-500.0,0.0001315,2]
[398257257,1765473058403,-500.0,0.0001315,2]
[398257258,1765473058415,-502.94,0.0001315,2]
[398257259,1765473058426,-2477.03,0.0001315,2]
[398257260,1765473058438,-500.0,0.0001315,2]
[398257261,1765473058451,-500.0,0.0001315,2]
[398257262,1765473058463,-16159.61,0.0001315,2]
[398257263,1765473058474,-500.0,0.0001315,2]
[398257264,1765473058487,-500.0,0.0001315,2]
[398257265,1765473058499,-1020.46,0.0001315,2]
[398257266,1765473058511,-500.0,0.0001315,2]
[398257267,1765473058524,-946.88,0.0001315,2]
[398257268,1765473058535,-500.0,0.0001315,2]
[398257269,1765473058547,-500.0,0.0001315,2]
[398257270,1765473058558,-500.0,0.0001315,2]
[398257271,1765473058570,-500.0,0.0001315,2]
[398257272,1765473058581,-929.81,0.0001315,2]
[398257273,1765473058593,-500.0,0.0001315,2]
[398257274,1765473058605,-500.0,0.0001315,2]
[398257275,1765473058617,-6470.75,0.0001315,2]
[398257276,1765473058629,-1802.15,0.0001315,2]
[398257277,1765473058640,-9833.23,0.0001315,2]
[398257278,1765473058650,-500.0,0.0001315,2]
[398257279,1765473058660,-997.71,0.0001315,2]
[398257280,1765473058671,-500.0,0.0001315,2]
[398257281,1765473058683,-500.0,0.0001315,2]
[398257282,1765473058693,-500.0,0.0001315,2]
[398257283,1765473058704,-975.53,0.0001315,2]
[398257284,1765473058716,-711.68,0.0001315,2]
[398257285,1765473058727,-500.0,0.0001315,2]
[398257286,1765473058739,-500.0,0.0001315,2]
[398257287,1765473058751,-6461.74,0.0001315,2]
[398257288,1765473058763,-2355.47,0.0001315,2]
[398257289,1765473058775,-500.0,0.0001315,2]
[398257290,1765473058787,-500.0,0.0001315,2]
[398257291,1765473058800,-705.81,0.0001315,2]
[398257292,1765473058812,-1840.07,0.0001315,2]
[398257293,1765473058822,-1427.0,0.0001315,2]
[398257294,1765473058832,-3038.1,0.0001315,2]
[398257295,1765473058842,-500.0,0.0001315,2]
[398257296,1765473058852,-500.0,0.0001315,2]
[398257297,1765473058866,-500.0,0.0001315,2]
[398257298,1765473058880,-579.3434084,0.0001315,2]
[398257299,1765473058894,-3082.36,0.0001315,2]
[398257300,1765473058906,-1002.42,0.0001315,2]
[398257301,1765473058918,-500.0,0.0001315,2]
[398257302,1765473058929,-500.0,0.0001315,2]
[398257303,1765473058939,-500.0,0.0001315,2]
[398257304,1765473058950,-500.0,0.0001315,2]
[398257305,1765473058963,-2274.69,0.0001315,2]
[398257306,1765473058974,-500.0,0.0001315,2]
[398257307,1765473058985,-2058.31,0.0001315,2]
[398257308,1765473058997,-500.0,0.0001315,2]
[398257309,1765473059008,-500.0,0.0001315,2]
[398257310,1765473059019,-543.43,0.0001315,2]
[398257311,1765473059029,-2874.84,0.0001315,2]
[398257312,1765473059041,-1626.08,0.0001315,2]
[398257313,1765473059052,-3909.79,0.0001315,2]
[398257314,1765473059063,-500.0,0.0001315,2]
[398257315,1765473059073,-1213.67,0.0001315,2]
[398257316,1765473059085,-500.0,0.0001315,2]
[398257317,1765473059095,-2466.81,0.0001315,2]
[398257318,1765473059106,-1495.1,0.0001315,2]
[398257319,1765473059116,-358.29443374,0.0001315,2]
[398257320,1765473059127,-2147.35,0.0001315,2]
[398257321,1765473059138,-2767.88,0.0001315,2]
[398257322,1765473059149,-9868.9,0.0001315,2]
[398257323,1765473059159,-737.71,0.0001315,2]
[398257324,1765473059170,-2201.84,0.0001315,2]
[398257325,1765473059181,-500.0,0.0001315,2]
[398257326,1765473059192,-508.55,0.0001315,2]
[398257327,1765473059203,-868.4,0.0001315,2]
[398257328,1765473059213,-500.0,0.0001315,2]
[398257329,1765473059224,-1593.22,0.0001315,2]
[398257330,1765473059234,-642.28,0.0001315,2]
[398257331,1765473059244,-500.0,0.0001315,2]
[398257332,1765473059255,-500.0,0.0001315,2]
[398257333,1765473059266,-500.0,0.0001315,2]
[398257334,1765473059276,-513.64,0.0001315,2]
[398257335,1765473059287,-500.0,0.0001315,2]
[398257336,1765473059297,-166.66534277,0.0001315,2]
[398257337,1765473059308,-500.0,0.0001315,2]
[398257338,1765473059319,-1703.23,0.0001315,2]
[398257339,1765473059330,-500.0,0.0001315,2]
[398257340,1765473059341,-3702.43,0.0001315,2]
[398257341,1765473059352,-598.2,0.0001315,2]
[398257342,1765473059363,-3797.02,0.0001315,2]
[398257343,1765473059374,-1310.35,0.0001315,2]
[398257344,1765473059385,-500.0,0.0001315,2]
[398257345,1765473059396,-500.0,0.0001315,2]
[398257346,1765473059407,-500.0,0.0001315,2]
[398257347,1765473059418,-1964.83,0.0001315,2]
[398257348,1765473059429,-573.53198692,0.0001315,2]
[398257349,1765473059441,-2176.01,0.0001315,2]
[398257350,1765473059452,-1191.2,0.0001315,2]
[398257351,1765473059463,-1848.59,0.0001315,2]
[398257352,1765473059474,-3062.71,0.0001315,2]
[398257353,1765473059485,-2486.75,0.0001315,2]
[398257354,1765473059496,-500.0,0.0001315,2]
[398257355,1765473059507,-1358.97,0.0001315,2]
[398257356,1765473059518,-1663.27,0.0001315,2]
[398257357,1765473059530,-443.68504974,0.0001315,2]
[398257358,1765473059540,-500.0,0.0001315,2]
[398257359,1765473059551,-500.0,0.0001315,2]
[398257360,1765473059562,-1044.05,0.0001315,2]
[398257361,1765473059573,-500.0,0.0001315,2]
[398257362,1765473059584,-2993.28,0.0001315,2]
[398257363,1765473059595,-645.89,0.0001315,2]
[398257364,1765473059605,-900.08,0.0001315,2]
[398257365,1765473059616,-500.0,0.0001315,2]
[398257366,1765473059627,-500.0,0.0001315,2]
[398257367,1765473059638,-546.01,0.0001315,2]
[398257368,1765473059649,-40715.35,0.0001315,2]
[398257369,1765473059660,-3514.28,0.0001315,2]
[398257370,1765473059670,-500.0,0.0001315,2]
[398257371,1765473059682,-500.0,0.0001315,2]
[398257372,1765473059693,-1320.84,0.0001315,2]
[398257373,1765473059703,-1458.76,0.0001315,2]
[398257374,1765473059715,-500.0,0.0001315,2]
[398257375,1765473059725,-1549.69,0.0001315,2]
[398257376,1765473059736,-500.0,0.0001315,2]
[398257377,1765473059747,-7942.46,0.0001315,2]
[398257378,1765473059757,-3763.94,0.0001315,2]
[398257379,1765473059768,-937.22,0.0001315,2]
[398257380,1765473059779,-10354.69,0.0001315,2]
[398257381,1765473059789,-500.0,0.0001315,2]
[398257382,1765473059800,-500.0,0.0001315,2]
[398257383,1765473059811,-500.0,0.0001315,2]
[398257384,1765473059822,-500.0,0.0001315,2]
[398257385,1765473059833,-9226.2,0.0001315,2]
[398257386,1765473059844,-783.44,0.0001315,2]
[398257387,1765473059855,-500.0,0.0001315,2]
[398257388,1765473059866,-500.0,0.0001315,2]
[398257389,1765473059879,-538.1,0.0001315,2]
[398257390,1765473059890,-360.09,0.000132,2]
[398257391,1765473059901,-553.64373807,0.0001322,2]
[398257392,1765473059912,-500.0,0.00013273,2]
[398257393,1765473059923,-500.0,0.00013273,2]
[398257394,1765473059934,-245.78136203,0.00013273,2]
[398257395,1765473059944,-360.09,0.000133,2]
[398257396,1765473059955,-360.09,0.000133,2]
[398257397,1765473059970,-400.0629,0.00013399,2]
[398257398,1765473059981,-360.09,0.000134,2]
[398257399,1765473059991,-2156.0,0.00013417,2]
[398257400,1765473060002,-1360.0,0.00013417,2]
[398257401,1765473060013,-631.0,0.00013417,2]
[398257402,1765473060024,-202.97,0.00013423,2]
[398257403,1765473060036,-1608.54,0.00013424,2]
[398257404,1765473060052,-500.0,0.00013424,2]
[398257405,1765473060064,-2302.959549,0.00013424,2]
[398257406,1765473060075,-535.11339329,0.00013424,2]
[398257407,1765473060086,-500.0,0.00013424,2]
[398257408,1765473060097,-500.0,0.00013424,2]
[398257409,1765473060109,-498.20162306,0.00013424,2]
[398257410,1765473060120,-500.0,0.00013424,2]
[398257411,1765473060131,-500.0,0.00013424,2]
[398257412,1765473060141,-500.0,0.00013424,2]
[398257413,1765473060152,-500.0,0.00013424,2]
[398257414,1765473060163,-500.0,0.00013424,2]
[398257415,1765473060174,-500.0,0.00013424,2]
[398257416,1765473060185,-500.0,0.00013424,2]